Cogmind - Beta 15 @@@ ROGUE MODE // 2025.05.21 @ 20:45:17 Player: SUBSUB Result: Destroyed by S-10 Pest with Light Assault Rifle Performance ------------- Evolutions (0) 0 Regions Visited (2) 400 Robots Destroyed (38) 190 Value Destroyed (858) 858 Prototype IDs (11) 220 Alien Tech Used (0) 0 Bonus (0) 0 TOTAL SCORE: 1668 Bonus ------- None Cogmind --------- Core Integrity 0/250 Matter 300/300 Energy 200/200 System Corruption 0% Temperature Cool (0) Movement Treading (250) Ox1 Location -10/Subcaves Parts ------- > --- POWER (1) -------- Subdweller Power Source > --- PROPULSION (2) --- Light Treads Spiked Treads > --- UTILITY (2) ------ High-capacity Storage Unit Seismic Detector > --- WEAPON (2) ------- Subdweller Machine Gun Barrage Gun > --- INVENTORY (20) --- Ion Engine Aluminum Leg Subdweller Monowheel Structural Scanner Visual Processing Unit Subdweller Optics Sensor Array Signal Interpreter Improved Terrain Scanner Utility Shielding Scrap Shield Subdweller Laser Subdweller Beam Cannon Barrage Gun Barrage Gun Grenade Launcher Mining Laser Flamer Scrap Shield Fragment (47) Peak State ------------ > --- POWER ------------ Subdweller Power Source > --- PROPULSION ------- Light Treads Spiked Treads > --- UTILITY ---------- High-capacity Storage Unit Seismic Detector > --- WEAPON ----------- Subdweller Machine Gun Barrage Gun > --- INVENTORY -------- Ion Engine Aluminum Leg Subdweller Monowheel Structural Scanner Visual Processing Unit Subdweller Optics Sensor Array Signal Interpreter Improved Terrain Scanner Utility Shielding Scrap Shield Subdweller Laser Subdweller Beam Cannon Barrage Gun Barrage Gun Grenade Launcher Mining Laser Flamer Scrap Shield Fragment [Rating: 15] Favorites ----------- Power Light Ion Engine Engine Light Ion Engine Propulsion Light Treads Treads Light Treads Leg Aluminum Leg Wheel Subdweller Monowheel Utility Seismic Detector Device Seismic Detector Storage High-capacity Storage Unit Protection Scrap Shield Weapon Subdweller Machine Gun Energy Cannon Beam Cannon Ballistic Gun Subdweller Machine Gun Ballistic Cannon Light Cannon Launcher Grenade Launcher Special Weapon Flamer Build | -11 -10 -10 ------- Run | Yrd Mat Sub Slots Evolved . | . . . Power . | . . . Propulsion . | . . . Utility . | . . . Weapon . | . . . Parts Attached 38 | 10 11 17 Power 6 | 1 1 4 Engine 6 | 1 1 4 Core . | . . . Reactor . | . . . Propulsion 9 | 4 2 3 Treads 4 | 2 . 2 Leg 4 | 2 2 . Wheel 1 | . . 1 Hover . | . . . Flight . | . . . Utility 7 | 3 2 2 Device 3 | 2 . 1 Storage 3 | 1 2 . Processor . | . . . Hackware . | . . . Protection 1 | . . 1 Artifact . | . . . Weapon 16 | 2 6 8 Energy Gun . | . . . Energy Cannon 4 | . 4 . Ballistic Gun 8 | 2 . 6 Ballistic Cannon 1 | . 1 . Launcher 1 | . . 1 Special Weapon 2 | . 1 1 Impact Weapon . | . . . Slashing Weapon . | . . . Piercing Weapon . | . . . Special Melee Weapon . | . . . Unidentified Prototypes . | . . . Parts Lost 8 | . . 8 Power 2 | . . 2 Propulsion 2 | . . 2 Utility 1 | . . 1 Weapon 3 | . . 3 Highest Loss Streak 4 | . . 4 To Critical Strikes . | . . . Average Backups 16 | 3 14 17 Power 1 | . 1 1 Propulsion 1 | 1 2 1 Utility 7 | . 5 8 Weapon 5 | . 4 6 Tool/Special . | . . . Unused Backups 18 | . . 18 Power 1 | . . 1 Propulsion 1 | . . 1 Utility 9 | . . 9 Weapon 7 | . . 7 Tool/Special . | . . . Average Slot Usage (%) 98 | . 99 97 Engine 13 | . 14 13 Treads 16 | . 24 12 Leg 10 | . 3 14 Device 13 | . 14 13 Storage 13 | . 14 13 Energy Cannon 1 | . 5 . Ballistic Gun 21 | . 21 21 Ballistic Cannon 1 | . . 2 Special Weapon 2 | . . 3 Peak Build Rating 15 | 7 9 15 Average Rating 11 | 6 8 12 On Entrance 5 | . 7 9 Naked Turns . | . . . Heaviest Build 87 | 12 87 54 Greatest Support 40 | 40 40 40 Greatest Overweight (x) 4 | 1 4 2 Average Overweight (x) 1 | . 1 1 Largest Inventory Capacity 25 | 8 25 20 Average Capacity 19 | 7 20 19 Most Carried 20 | 5 20 20 Average Carried 17 | 3 14 19 Final Capacity 20 | 8 20 20 Final Carried 20 | 5 19 20 Class Distribution -------------------- 88% | Mutant 11% | Scavenger-Mutant Dominant Class ---------------- Mutant | -10/Materials Mutant | -10/Subcaves Resources | -11 -10 -10 ----------- Run | Yrd Mat Sub Matter Collected 1226 | 398 240 588 Remotely 241 | 241 . . Salvage Created 1152 | 281 505 366 Parts 86 | 25 40 21 Haulers Intercepted 1 | . 1 . Recyclers Shooed 1 | . 1 . Parts Field Recycled . | . . . Retrieved Matter . | . . . Parts Self-Destructed 4 | . . 4 Prevented . | . . . Kills | -11 -10 -10 ------- Run | Yrd Mat Sub Combat Hostiles Destroyed 23 | . 12 11 Guns 17 | . 8 9 Cannons 6 | . 4 2 Classes Destroyed 9 | 3 4 2 Worker 2 | 2 . . Tunneler 7 | 7 . . Hauler 1 | . 1 . Recycler 2 | 1 1 . Watcher 3 | . 3 . Swarmer 6 | . 6 . Grunt 6 | . 6 . Sentry 1 | . . 1 Subdweller 10 | . . 10 Best Kill Streak 4 | 3 4 2 Combat Bots Only 4 | . 4 2 Max Kills in Single Turn 1 | 1 1 1 Gunslinging . | . . . Exploded . | . . . Melee . | . . . Uniques/NPCs Destroyed . | . . . Combat | -11 -10 -10 -------- Run | Yrd Mat Sub Hostile Shots Fired 142 | . 46 96 Missed 32 | . 6 26 Hits 110 | . 40 70 Projectile 110 | . 40 70 Critical Strikes 5 | . . 5 Damage Taken 1875 | . 464 1411 Core 252 | . 63 189 Absorbed by Shields . | . . . Core Remaining (%) 100 | 100 . . Volleys Fired 162 | 26 63 73 Largest 2 | 2 2 2 Hottest 130 | 40 120 130 Shots Fired 286 | 52 104 130 Gun 224 | 52 62 110 Cannon 52 | . 37 15 Launcher 1 | . . 1 Special 9 | . 5 4 Kinetic 239 | 52 62 125 Thermal 46 | . 42 4 Explosive 1 | . . 1 Electromagnetic . | . . . Robot Hit Streak 15 | 5 11 15 Robot Miss Streak 6 | 6 6 2 Penetration Max . | . . . Secondary Targets 1 | . . 1 Max Gunslinging Chain 1 | . . 1 Shots Hit Robots 164 | 30 57 77 Core Hits 61 | 15 25 21 Critical Kills 1 | . 1 . Critical Parts Destroyed . | . . . Critical Strikes 2 | . 1 1 Destroy 2 | . 1 1 Melee Attacks . | . . . Impact . | . . . Slashing . | . . . Piercing . | . . . Sneak Attacks . | . . . Combat Hostiles . | . . . Follow-up Attacks . | . . . Damage Inflicted 2518 | 323 737 1458 Guns 1882 | 323 295 1264 Cannons 636 | . 442 194 Explosions . | . . . Melee . | . . . Ramming . | . . . Kinetic 2076 | 323 295 1458 Thermal 442 | . 442 . Explosive . | . . . Electromagnetic . | . . . Impact . | . . . Slashing . | . . . Piercing . | . . . Highest Corruption . | . . . Average Corruption . | . . . Corruption Purged . | . . . Corruption Blocked . | . . . Overload Shots . | . . . Overflow Damage . | . . . Projectiles . | . . . Explosions . | . . . Melee . | . . . Knockbacks . | . . . Impact . | . . . Kinetic . | . . . Secondary . | . . . Self-Inflicted Damage . | . . . Shots . | . . . Rammed . | . . . Targets Rammed . | . . . Kicked . | . . . Crushed . | . . . Highest Temperature 344 | . 344 . Average Temperature 134 | . 134 . Received Heat Transfer 432 | . 216 216 Effects 2 | . 2 . Energy Bleed 1 | . 1 . Damage (minor) 1 | . 1 . Siege Activations . | . . . Martial Activations . | . . . Shielding Activations . | . . . Robots Disrupted . | . . . Combat Hostiles . | . . . Robots Corrupted . | . . . Combat Hostiles . | . . . Parts Fried . | . . . Impact Corruptions . | . . . Robots Melted . | . . . Combat Hostiles . | . . . Parts Melted 2 | . 1 1 Heat Transferred 925 | . 925 . Parts Sabotaged . | . . . Parts Stolen . | . . . Parts Stripped . | . . . Power Chain Reactions . | . . . Alert | -11 -10 -10 ------- Run | Yrd Mat Sub Maximum Alert Level . | . . . Low Security (%) 100 | 100 100 . Level 1 . | . . . Level 2 . | . . . Level 3 . | . . . Level 4 . | . . . Level 5 . | . . . High Security . | . . . Max Security . | . . . Peak Influence 139 | 15 139 . Initial . | . . . Average 20 | 1 23 . Influence Increases 438 | 50 353 35 Destroy 0b10 Robot/C 260 | . 240 20 Destroy 0b10 Robot/NC 75 | 50 25 . Destroy Leader 58 | . 58 . Successful Hack 11 | . 11 . Disable Machine 15 | . 15 . Destroy Structure 4 | . 4 . Lose Combat Pursuer 15 | . . 15 Influence Decreases 423 | 50 225 148 Entered New Map 62 | . . 62 Time Decay 361 | 50 225 86 Squads Dispatched 1 | . 1 . Investigation 1 | . 1 . Extermination . | . . . Reinforcement . | . . . Assault . | . . . Garrison . | . . . Intercept . | . . . Searches Triggered . | . . . Construction Impeded . | . . . Haulers Reinforced . | . . . Active Scanning Responses . | . . . Cargo Convoy Interrupts . | . . . Stealth | -11 -10 -10 --------- Run | Yrd Mat Sub Distress Signals . | . . . Communications Jammed . | . . . Distress Signals . | . . . Times Spotted 38 | . 22 16 Peak Tracking Total 3 | . 3 2 Tactical Retreats 1 | . . 1 Traps | -11 -10 -10 ------- Run | Yrd Mat Sub Traps Triggered 1 | . . 1 Indirectly . | . . . Trap Hack Attempts . | . . . Triggered . | . . . Disarmed 3 | . 3 . Reprogrammed . | . . . Reused . | . . . Traps Extracted . | . . . Installed . | . . . Triggered . | . . . Machines | -11 -10 -10 ---------- Run | Yrd Mat Sub Machines Disabled 1 | . 1 . Max in Single Turn 1 | . 1 . Machines Repaired . | . . . Machines Dismantled . | . . . Machines Sabotaged . | . . . Overloaded Fab Kills . | . . . Hacking | -11 -10 -10 --------- Run | Yrd Mat Sub Machines Accessed 7 | . 5 2 Terminals 5 | . 5 . Fabricators . | . . . Repair Stations . | . . . Recycling Units . | . . . Scanalyzers . | . . . Garrison Access . | . . . Total Hacks 17 | . 12 5 Successful 8 | . 3 5 Failed 9 | . 9 . Catastrophic 2 | . 2 . Database Lockouts . | . . . Manual 7 | . 7 . Terminals 12 | . 12 . Fabricators . | . . . Repair Stations . | . . . Recycling Units . | . . . Scanalyzers . | . . . Garrison Access . | . . . Terminal Hacks 8 | . 3 5 Record 6 | . 2 4 Disarm Traps 1 | . 1 . Proto ID Catalog 1 | . . 1 Fabricator Hacks . | . . . Repair Station Hacks . | . . . Recycling Unit Hacks . | . . . Scanalyzer . | . . . Garrison Access Hacks . | . . . Unauthorized Hacks . | . . . Terminals . | . . . Fabricators . | . . . Repair Stations . | . . . Recycling Units . | . . . Scanalyzers . | . . . Garrison Access . | . . . Data Cores Recovered . | . . . Used . | . . . Hacking Detections 5 | . 5 . Full Trace Events 1 | . 1 . Feedback Events . | . . . Feedback Blocked . | . . . Robot Schematics Acquired . | . . . Robots Built . | . . . Authchips . | . . . Time . | . . . Total Robot Build Rating . | . . . Part Schematics Acquired . | . . . Parts Built . | . . . Authchips . | . . . Time . | . . . Total Part Build Rating . | . . . Parts Repaired . | . . . Time . | . . . Parts Recycled . | . . . Recycled Matter . | . . . Retrieved Matter . | . . . Retrieved Components . | . . . Parts Scanalyzed . | . . . Part Schematics Acquired . | . . . Parts Damaged . | . . . Bothacking | -11 -10 -10 ------------ Run | Yrd Mat Sub Used RIF Installer . | . . . Robots Hacked . | . . . Non-combat . | . . . Combat . | . . . Robot Hacks Applied . | . . . Relay Couplers Released . | . . . Fabnet Peak Effective % . | . . . Robots Rewired . | . . . Allies Hacked . | . . . Hacks Repelled . | . . . Allies | -11 -10 -10 -------- Run | Yrd Mat Sub Total Allies . | . . . Largest Group . | . . . Highest-Rated Group . | . . . Highest-Rated Ally . | . . . Total Orders . | . . . Ally Attacks . | . . . Total Damage . | . . . Kills . | . . . Allies Corrupted . | . . . Allies Melted . | . . . Intel | -11 -10 -10 ------- Run | Yrd Mat Sub Active Infowar (turns) 7152 | 35 2268 4849 Seismic 7152 | 35 2268 4849 Robot Analysis Total . | . . . Derelict Logs Recovered 2 | . . 2 Drone Launches . | . . . Drone Recoveries . | . . . Exploration | -11 -10 -10 ------------- Run | Yrd Mat Sub Turns Passed 7744 | 383 2268 5093 Spaces Moved 2917 | 226 757 1934 Core 5 | 5 . . Treads 1562 | 33 651 878 Legs 1147 | 188 106 853 Wheels 203 | . . 203 Hover . | . . . Flight . | . . . Fastest Speed 50 | 50 120 130 Average Speed 235 | 126 247 243 Slowest Speed 480 | 190 480 320 Overloaded Moves . | . . . Propulsion Burnouts . | . . . Robots Hopped . | . . . Potential Cave-ins . | . . . Cave-ins Triggered . | . . . Exploration Rate (%) 66 | 15 89 94 Regions Visited 2 Branch Regions 1 Pre-discovered Areas 2 | . . 2 Known Exits Taken . | . . . Unknown Exits Taken 2 | 1 1 . Scrap Searched 6 | . . 6 Spaces Dug 13 | . 4 9 Terrain Destroyed 13 | . 4 9 Melee . | . . . Projectile 4 | . 4 . AOE 9 | . . 9 Terrain Rammed . | . . . Walls Destroyed . | . . . Machines Disabled . | . . . Actions | -11 -10 -10 --------- Run | Yrd Mat Sub Total 3501 | 272 1043 2186 Wait 297 | 6 191 100 Move 2915 | 225 756 1934 Hop . | . . . Pick Up 49 | 5 14 30 Fast Attach 18 | 7 1 10 Attach 6 | . 1 5 Detach 1 | . . 1 Swap 27 | 3 14 10 Drop 24 | . 3 21 Fire 162 | 26 63 73 Melee . | . . . Ram . | . . . Kick . | . . . Crush . | . . . Escape Stasis . | . . . Rewire . | . . . Trap . | . . . Miscellaneous 2 | . . 2 Route ------- -11/Scrapyard -10/Materials (discovered 4 exits: [*Mat x3] / *Sub) -10/Subcaves (discovered 2 exits: [*Mat x2]) History --------- Turn | Location | Event 26 | -11/Scrapyard | Discovered new exit (range 15) 384 | -11/Scrapyard | Entered Materials 385 | -10/Materials | Build established: Mutant 954 | -10/Materials | Discovered new exit (range 16) 1705 | -10/Materials | Discovered new exit (range 7) 2009 | -10/Materials | Discovered new exit (range 5) 2192 | -10/Materials | Discovered new exit (range 10) 2652 | -10/Materials | Entered Subcaves 2653 | -10/Subcaves | Approached by a straggling Scientist 2763 | -10/Subcaves | Shifting Twisted Machinery released Lgt. Humpback 2765 | -10/Subcaves | Shifting Twisted Machinery released Sub. Laser 2862 | -10/Subcaves | Build established: Scavenger-Mutant 3083 | -10/Subcaves | Shifting Twisted Machinery released Sub. Machine Gun 3137 | -10/Subcaves | Shifting Twisted Machinery released Barrage Gun 3232 | -10/Subcaves | A swath of the cavern ceiling suddenly collapsed 3303 | -10/Subcaves | Discovered new exit (range 8) 3466 | -10/Subcaves | Disturbed a concealed Subdweller 3475 | -10/Subcaves | Core integrity fell below 50% 3526 | -10/Subcaves | Lost 4 parts (1p1n1u1w) 3739 | -10/Subcaves | Build established: Mutant 4104 | -10/Subcaves | Shifting Twisted Machinery released Barrage Gun 4108 | -10/Subcaves | Shifting Twisted Machinery released Lgt. Humpback 4506 | -10/Subcaves | Visited Clippyterm 4514 | -10/Subcaves | Learned Factory fabricator intel 4514 | -10/Subcaves | Learned Factory trap positions 4716 | -10/Subcaves | A swath of the cavern ceiling suddenly collapsed 5263 | -10/Subcaves | Learned location of Zion (-6) 5263 | -10/Subcaves | Met a Zionite searching for "candidates" 5322 | -10/Subcaves | Core integrity fell below 20% 5727 | -10/Subcaves | Discovered new exit (range 5) 5953 | -10/Subcaves | Visited 4L-MR0's lab 7230 | -10/Subcaves | Learned Materials emergency access door positions 7600 | -10/Subcaves | Learned location of Storage (-9) 7745 | -10/Subcaves | Destroyed by S-10 Pest with Light Assault Rifle Last Messages --------------- 07389_ 4L-QC4(R): "SUBSUUUUUB!" 07407_ 4L-QC4(R) destroyed. 07410_ Acquired 49 matter. 07445_ Searching scrap... 07445_ Found Sub. Power Source. 07445_ Found 69 Matter. 07446_ Acquired 31 matter. 07460_ Searching scrap... 07460_ Found Mak. Shrapnel Gun. 07460_ Found Mak. Light Armor Plating. 07460_ Found 68 Matter. 07468_ Searching scrap... 07468_ Found Sub. Monowheel. 07468_ Found Shrapnel Trap. 07468_ Found 50 Matter. 07600_ Acquired derelict log, extracted data. World map updated: -9/Storage. 07658_ Triggered Piercing Trap. 07658_ Spikes shoot up from the floor. 07658_ Critical hit (Impale). Map ----- +----------------------------------------------------+ | ?????????????????????????????#% [&!#?????????????? | | ?????????????????????????????###&"##?????????????? | | ?##???????######???#####??????#% ###?????????????? | | ## ######## # #??## ##????###*# #?????????????? | | ##?# #???## " " #?????????????? | | ^ ### ##??# #######???????? | | ## # #??# "#???????? | | #?# ###### #??### "#???????? | | #??# #??## #????### ##???????? | | ???#### #?# #??????# """ ##????????? | | ??????###?## ### ####???##!##########?????? | | ???????????########?# ## #####! ##??## #?????? | | ????????????????????## ## ""#### ##????? | | ?????????????????????## ## # #????? | | ?????????????????????## ##### ] [ ##???? | | ?????????????????????# ##??# & #???? | | ?????????????????????# #??# "# ###???? | | ?????????????????????# #??# ###### ##????? | | ?????????????????????# #?## ##????# #????? | | ?????????????????????# ##### ##???## ##????? | | ?????????????????????## #?## #??## #?????? | | ??????????????????????# ### ####?## ##????? | | ??????????????????????## ## #?#### ##???? | | ???????????????????????## ### #???? | | ?????????????????????#### ## ##???? | | ?????????????????????# @ ##????? | | ?????????????????????# ## #?????? | | ???????????????? s ### ### ##????? | | ??????????? s # ### # #????? | | ??????????"" s # ## # #????? | | ??????????" ######### ##### # ##????? | | ??????????? ?????????? ##?## ###?????? | | ???????????"??????????? ### ##??????? | | ??????????????????????? ### #??????? | | ??????????????????????? ### ?# ##??????? | | ?????????????????????? ## ##?# #?## #??????? | | ?????????????????????? ??##?## #?## #??????? | | ?????????????????????? ?????# #?# ##??????? | | ?????????????????????? #?????# #### ##??????? | | ?????????????????????? #??????## #??????? | | ?###???????????????????????#### # #??? | | # ##?????????????????????## #??? | | #????????????????????## ## #??? | | #???????????????????## ######## # #??? | | #???????????????###### ##??????# ""######??? | | #??????????????## #??????? #"##???????? | | ##??????????????# #???????#"##????????? | | ##???????????????# ##????????"??????????? | | ##?####???????????## ##????????? ?#? ??????? | | #### ############### ###??????????#? ?????? | +----------------------------------------------------+ Best States ------------- Heat Dissipation 25 Energy Generation 15 Energy Capacity 250 Matter Stores 300 Matter Capacity 300 Sight Range 16 Terrain Scan Density 10 Armor Coverage 800 Evasion (%) 55 Recoil Reduction 2 Item Schematics ----------------- None Robot Schematics ------------------ None Fabricated ------------ Nothing Repaired ---------- Nothing Alien Tech Used ----------------- None Achievements -------------- None Challenges ------------ None Game ------ Seed LobotomyGravmagCalibrator Manual? 0 Play Time 00:38:50 Cumulative 33.7 hours Start 2025.05.21 @ 20:11:39 End 2025.05.21 @ 20:45:17 Sessions 1 Manual Loads 0 Difficulty Rogue Special Mode None Game No. 46 Rogue 46 Adventurer 0 Explorer 0 Win Type - Total 0 Types 0/0/0/0/0/0/0/0/0/0 Lore% 34 Gallery% 25 Achievement% 27 Wizard Run 0 Options --------- Layout 0 ASCII 0 Keyboard 1 Movement Vi Keybinds 0 Fullscreen 1 Font 18/SmallcapsGlow Map View 76x50 Zoom Use 0% Tactical HUD 1 Map Filters NONE Filters NONE Steam 1 RUN: 41e1873a-6071-4de7-a87a-913364f7b128